[Event "*** Titled Tuesday 3|2 Blitz"]
[Site "Chess.com"]
[Date "2015.08.04"]
[Round "5"]
[White "DanielNaroditsky"]
[Black "pKiLz5Rn9b"]
[Result "0-1"]
[WhiteElo "2485"]
[BlackElo "2411"]
[TimeControl "180+2"]
[EndTime "12:36:12 PDT"]
[Termination "pKiLz5Rn9b won on time"]

1. d4 {[%clk 0:03:01.9]} 1... e6 {[%clk 0:03:01.2]} 2. e4 {[%clk 0:03:01.9]}
2... d5 {[%clk 0:03:02.1]} 3. Nd2 {[%clk 0:03:03.5]} 3... Nf6 {[%clk 0:03:03.2]}
4. e5 {[%clk 0:03:04.7]} 4... Nfd7 {[%clk 0:03:04.1]} 5. c3 {[%clk 0:03:06.4]}
5... c5 {[%clk 0:03:05.5]} 6. Bd3 {[%clk 0:03:07.2]} 6... Nc6 {[%clk 0:03:07]}
7. Ngf3 {[%clk 0:03:08]} 7... Be7 {[%clk 0:03:07.5]} 8. O-O {[%clk 0:03:08.4]}
8... a5 {[%clk 0:03:09.2]} 9. a4 {[%clk 0:03:08.3]} 9... cxd4 {[%clk 0:03:10.1]}
10. cxd4 {[%clk 0:03:08.9]} 10... Nb4 {[%clk 0:03:11]} 11. Bb5 {[%clk 0:03:09]}
11... b6 {[%clk 0:03:12.6]} 12. Nb1 {[%clk 0:03:10.3]} 12... Ba6 {[%clk
0:03:05.4]} 13. Nc3 {[%clk 0:03:11.2]} 13... Bxb5 {[%clk 0:03:06.9]} 14. axb5
{[%clk 0:03:12.2]} 14... Rc8 {[%clk 0:03:04.8]} 15. Ne1 {[%clk 0:03:03.4]} 15...
O-O {[%clk 0:03:02]} 16. f4 {[%clk 0:03:04.2]} 16... f5 {[%clk 0:03:02.3]} 17.
Kh1 {[%clk 0:03:00.9]} 17... Rc4 {[%clk 0:02:59.3]} 18. Nf3 {[%clk 0:03:01.2]}
18... Qc8 {[%clk 0:02:54.9]} 19. Qd2 {[%clk 0:02:45.9]} 19... Qb7 {[%clk
0:02:53.3]} 20. Rg1 {[%clk 0:02:38.1]} 20... Rfc8 {[%clk 0:02:52]} 21. g4 {[%clk
0:02:39.3]} 21... fxg4 {[%clk 0:02:51.7]} 22. Qg2 {[%clk 0:02:36.6]} 22... Nd3
{[%clk 0:02:45.6]} 23. h3 {[%clk 0:02:26.1]} 23... Rf8 {[%clk 0:02:43.1]} 24.
Qg3 {[%clk 0:02:20.4]} 24... Qc8 {[%clk 0:02:11.4]} 25. hxg4 {[%clk 0:02:19.2]}
25... Bb4 {[%clk 0:01:50]} 26. Ng5 {[%clk 0:02:09.5]} 26... Nxc1 {[%clk
0:01:41.1]} 27. Raxc1 {[%clk 0:02:09.7]} 27... Re8 {[%clk 0:01:36.5]} 28. Qd3
{[%clk 0:01:57.8]} 28... Nf8 {[%clk 0:01:36.2]} 29. f5 {[%clk 0:01:59]} 29...
Be7 {[%clk 0:01:30.8]} 30. Nh3 {[%clk 0:01:37.3]} 30... a4 {[%clk 0:01:26.6]}
31. Rcf1 {[%clk 0:01:33.3]} 31... Qd8 {[%clk 0:01:18]} 32. Nf4 {[%clk
0:01:19.7]} 32... Bg5 {[%clk 0:01:14.5]} 33. Nh5 {[%clk 0:01:20.7]} 33... Rc7
{[%clk 0:00:54]} 34. Nxa4 {[%clk 0:01:13.7]} 34... Rf7 {[%clk 0:00:39.1]} 35.
Nc3 {[%clk 0:01:12.2]} 35... Qd7 {[%clk 0:00:33.2]} 36. f6 {[%clk 0:01:04.4]}
36... g6 {[%clk 0:00:32]} 37. Ng3 {[%clk 0:01:04.7]} 37... Rc8 {[%clk 0:00:30]}
38. Nf5 {[%clk 0:01:05.3]} 38... gxf5 {[%clk 0:00:20.4]} 39. gxf5 {[%clk
0:01:05.1]} 39... h6 {[%clk 0:00:22]} 40. fxe6 {[%clk 0:01:05]} 40... Qxe6
{[%clk 0:00:23.3]} 41. Rf5 {[%clk 0:01:06.6]} 41... Nh7 {[%clk 0:00:23.9]} 42.
Qh3 {[%clk 0:01:02.1]} 42... Kh8 {[%clk 0:00:23.5]} 43. Qf3 {[%clk 0:00:55.2]}
43... Rg8 {[%clk 0:00:23.1]} 44. Nxd5 {[%clk 0:00:54.3]} 44... Rd8 {[%clk
0:00:16.4]} 45. Ne7 {[%clk 0:00:33.3]} 45... Rxd4 {[%clk 0:00:09.5]} 0-1

[Event "*** Titled Tuesday 3|2 Blitz"]
[Site "Chess.com"]
[Date "2015.08.04"]
[Round "5"]
[White "drifblim"]
[Black "chessking2151"]
[Result "1-0"]
[WhiteElo "2054"]
[BlackElo "1989"]
[TimeControl "180+2"]
[EndTime "12:36:38 PDT"]
[Termination "drifblim won by resignation"]

1. e4 {[%clk 0:03:01.9]} 1... c5 {[%clk 0:02:58.3]} 2. Nf3 {[%clk 0:03:01.4]}
2... g6 {[%clk 0:02:59.2]} 3. d4 {[%clk 0:03:03.3]} 3... cxd4 {[%clk 0:03:00.1]}
4. Nxd4 {[%clk 0:02:58.4]} 4... Nc6 {[%clk 0:02:59.7]} 5. c4 {[%clk 0:02:58.1]}
5... Nf6 {[%clk 0:03:00.5]} 6. Nc3 {[%clk 0:02:54.7]} 6... Bg7 {[%clk 0:02:59]}
7. Nc2 {[%clk 0:02:55.4]} 7... d6 {[%clk 0:02:59]} 8. Be2 {[%clk 0:02:56.7]}
8... O-O {[%clk 0:02:59.6]} 9. O-O {[%clk 0:02:57.8]} 9... a5 {[%clk 0:03:00]}
10. Bd2 {[%clk 0:02:59]} 10... Nd7 {[%clk 0:02:55.6]} 11. Rb1 {[%clk 0:02:59.3]}
11... Nc5 {[%clk 0:02:55.8]} 12. f3 {[%clk 0:02:59.7]} 12... Be6 {[%clk
0:02:56.9]} 13. Nd5 {[%clk 0:03:00]} 13... Bxd5 {[%clk 0:02:57.2]} 14. cxd5
{[%clk 0:03:01.1]} 14... Nd4 {[%clk 0:02:58.1]} 15. Nxd4 {[%clk 0:03:01.3]}
15... Bxd4+ {[%clk 0:02:59.2]} 16. Kh1 {[%clk 0:03:02.8]} 16... Bg7 {[%clk
0:03:00.2]} 17. Be3 {[%clk 0:02:59.7]} 17... Qd7 {[%clk 0:02:43.3]} 18. Bxc5
{[%clk 0:02:37.9]} 18... dxc5 {[%clk 0:02:42]} 19. a4 {[%clk 0:02:39]} 19...
Rfc8 {[%clk 0:02:39.1]} 20. Bb5 {[%clk 0:02:39.8]} 20... Qd6 {[%clk 0:02:39.6]}
21. Qd2 {[%clk 0:02:34.2]} 21... e6 {[%clk 0:02:36.9]} 22. Rfd1 {[%clk
0:02:28.8]} 22... Bd4 {[%clk 0:02:31.3]} 23. dxe6 {[%clk 0:02:27.4]} 23... Qxe6
{[%clk 0:02:31.3]} 24. Qg5 {[%clk 0:02:16.9]} 24... Rd8 {[%clk 0:02:28.4]} 25.
b3 {[%clk 0:02:06.9]} 25... Bf6 {[%clk 0:02:25]} 26. Qf4 {[%clk 0:02:01.4]}
26... Rxd1+ {[%clk 0:02:12]} 27. Rxd1 {[%clk 0:02:02.2]} 27... Qxb3 {[%clk
0:02:08.4]} 28. Re1 {[%clk 0:01:59.1]} 28... Bd4 {[%clk 0:02:05.4]} 29. h4
{[%clk 0:01:55.8]} 29... Qe6 {[%clk 0:01:50.8]} 30. Qc7 {[%clk 0:01:50.9]} 30...
Qc8 {[%clk 0:01:51]} 31. Qe7 {[%clk 0:01:50.3]} 31... Rb8 {[%clk 0:01:48.6]} 32.
e5 {[%clk 0:01:49.4]} 32... Qd8 {[%clk 0:01:46.6]} 33. Qd6 {[%clk 0:01:38.7]}
33... Qxd6 {[%clk 0:01:29.8]} 34. exd6 {[%clk 0:01:39.5]} 34... Rd8 {[%clk
0:01:30.6]} 35. d7 {[%clk 0:01:38.9]} 35... Bf6 {[%clk 0:01:29.5]} 36. g3 {[%clk
0:01:33.7]} 36... c4 {[%clk 0:01:27.6]} 37. Re4 {[%clk 0:01:12]} 37... c3 {[%clk
0:01:25.6]} 38. Rc4 {[%clk 0:01:13.1]} 38... Kf8 {[%clk 0:01:24.3]} 39. Kg2
{[%clk 0:01:11]} 39... Ke7 {[%clk 0:01:23.7]} 40. g4 {[%clk 0:01:04.9]} 40...
Kd6 {[%clk 0:01:15.9]} 41. g5 {[%clk 0:01:03.9]} 41... Bg7 {[%clk 0:01:14.9]}
42. Rc8 {[%clk 0:00:57.6]} 42... Ke7 {[%clk 0:01:13.5]} 43. Rc7 {[%clk
0:00:53.8]} 43... f6 {[%clk 0:01:12.6]} 44. Rxc3 {[%clk 0:00:38.6]} 44... fxg5
{[%clk 0:01:11.4]} 45. Re3+ {[%clk 0:00:39.8]} 45... Kd6 {[%clk 0:01:10.5]} 46.
hxg5 {[%clk 0:00:38.7]} 46... Be5 {[%clk 0:01:10.7]} 47. Rd3+ {[%clk 0:00:36.4]}
47... Kc7 {[%clk 0:01:09.1]} 48. Rd5 {[%clk 0:00:33.4]} 48... Bd6 {[%clk
0:01:09]} 49. Rd4 {[%clk 0:00:30.2]} 49... Be5 {[%clk 0:01:09.5]} 50. Re4 {[%clk
0:00:31.2]} 50... Bd6 {[%clk 0:01:05.7]} 51. f4 {[%clk 0:00:27.1]} 51... Bf8
{[%clk 0:01:03.9]} 52. Kf3 {[%clk 0:00:26.4]} 52... Bb4 {[%clk 0:01:04.6]} 53.
Kg4 {[%clk 0:00:26]} 53... Bd6 {[%clk 0:01:00.4]} 54. Re6 {[%clk 0:00:24.7]}
54... Bb4 {[%clk 0:00:46.7]} 55. Rf6 {[%clk 0:00:24.1]} 55... Rf8 {[%clk
0:00:40]} 56. f5 {[%clk 0:00:15.5]} 56... gxf5+ {[%clk 0:00:38.2]} 57. Kxf5
{[%clk 0:00:16.6]} 57... Rxf6+ {[%clk 0:00:21.6]} 58. gxf6 {[%clk 0:00:17.3]}
58... Kd8 {[%clk 0:00:21.9]} 59. Ke6 {[%clk 0:00:16.4]} 59... h5 {[%clk
0:00:22.5]} 60. Kf5 {[%clk 0:00:17.2]} 60... h4 {[%clk 0:00:23.5]} 61. Kg4
{[%clk 0:00:17.9]} 61... Bc3 {[%clk 0:00:22.8]} 62. f7 {[%clk 0:00:19]} 62...
Bg7 {[%clk 0:00:23.7]} 63. Kxh4 {[%clk 0:00:19.6]} 63... Ke7 {[%clk 0:00:23.8]}
64. Kg5 {[%clk 0:00:20.9]} 64... Bf6+ {[%clk 0:00:22.1]} 65. Kg6 {[%clk
0:00:22.1]} 1-0

[Event "*** Titled Tuesday 3|2 Blitz"]
[Site "Chess.com"]
[Date "2015.08.04"]
[Round "5"]
[White "KyronGriffith"]
[Black "PauloCesarCosta"]
[Result "1/2-1/2"]
[WhiteElo "2235"]
[BlackElo "2003"]
[TimeControl "180+2"]
[EndTime "12:36:56 PDT"]
[Termination "Game drawn by agreement"]

1. e4 {[%clk 0:03:01.3]} 1... e6 {[%clk 0:03:00.5]} 2. d3 {[%clk 0:03:01.2]}
2... c5 {[%clk 0:03:00.9]} 3. Nd2 {[%clk 0:03:02.2]} 3... Nc6 {[%clk 0:03:02.4]}
4. Ngf3 {[%clk 0:03:03.7]} 4... g6 {[%clk 0:03:02.9]} 5. g3 {[%clk 0:03:05.1]}
5... Bg7 {[%clk 0:03:04]} 6. Bg2 {[%clk 0:03:06.3]} 6... Nge7 {[%clk 0:03:05.4]}
7. O-O {[%clk 0:03:05.8]} 7... d6 {[%clk 0:03:06.9]} 8. Nh4 {[%clk 0:03:06.4]}
8... O-O {[%clk 0:03:06.3]} 9. f4 {[%clk 0:03:07.5]} 9... Rb8 {[%clk 0:03:01.9]}
10. a4 {[%clk 0:03:00.7]} 10... a6 {[%clk 0:03:00]} 11. c3 {[%clk 0:03:01.4]}
11... b5 {[%clk 0:02:57.2]} 12. axb5 {[%clk 0:03:03.3]} 12... axb5 {[%clk
0:02:57.4]} 13. f5 {[%clk 0:02:59.8]} 13... exf5 {[%clk 0:02:56.8]} 14. exf5
{[%clk 0:03:01.7]} 14... gxf5 {[%clk 0:02:09.4]} 15. Qh5 {[%clk 0:02:57.6]}
15... Ne5 {[%clk 0:01:58.4]} 16. Ndf3 {[%clk 0:02:35.8]} 16... Nxf3+ {[%clk
0:01:39.8]} 17. Bxf3 {[%clk 0:02:37.7]} 17... Ng6 {[%clk 0:01:35.9]} 18. Nxf5
{[%clk 0:02:33.7]} 18... Bxf5 {[%clk 0:01:32.2]} 19. Qxf5 {[%clk 0:02:35.6]}
19... Qf6 {[%clk 0:01:20.6]} 20. Qxf6 {[%clk 0:02:30.5]} 20... Bxf6 {[%clk
0:01:21]} 21. Bd5 {[%clk 0:02:32.4]} 21... Bg7 {[%clk 0:01:15.5]} 22. Ra7 {[%clk
0:02:31.8]} 22... b4 {[%clk 0:00:37.6]} 23. Raxf7 {[%clk 0:02:30.4]} 23... Rxf7
{[%clk 0:00:35.1]} 24. Rxf7 {[%clk 0:02:32.3]} 24... Kh8 {[%clk 0:00:32]} 25. c4
{[%clk 0:02:22.7]} 25... Re8 {[%clk 0:00:21.2]} 26. Bf4 {[%clk 0:02:15]} 26...
Bxb2 {[%clk 0:00:18.8]} 27. Bxd6 {[%clk 0:02:13.9]} 27... Bd4+ {[%clk
0:00:14.8]} 28. Kg2 {[%clk 0:02:14.4]} 28... Ne5 {[%clk 0:00:10]} 29. Rc7 {[%clk
0:02:09.9]} 29... Nxd3 {[%clk 0:00:07.8]} 30. Kf3 {[%clk 0:02:02.3]} 30... b3
{[%clk 0:00:08.8]} 31. Rb7 {[%clk 0:02:02]} 31... b2 {[%clk 0:00:09.1]} 32. Be4
{[%clk 0:02:01.8]} 32... Nb4 {[%clk 0:00:07.3]} 33. Rxh7+ {[%clk 0:01:58.3]}
33... Kg8 {[%clk 0:00:08.2]} 34. Re7 {[%clk 0:01:39.3]} 34... Rxe7 {[%clk
0:00:07.9]} 35. Bxe7 {[%clk 0:01:41.2]} 35... Nc6 {[%clk 0:00:04.7]} 36. Bd6
{[%clk 0:01:35.6]} 36... Na5 {[%clk 0:00:05]} 37. Ke2 {[%clk 0:01:34]} 37...
Nxc4 {[%clk 0:00:02.4]} 38. h4 {[%clk 0:01:28.2]} 38... Na3 {[%clk 0:00:02.5]}
39. g4 {[%clk 0:01:26.7]} 39... b1=Q {[%clk 0:00:03]} 40. Bxb1 {[%clk
0:01:27.6]} 40... Nxb1 {[%clk 0:00:04.7]} 41. Kd3 {[%clk 0:01:27.2]} 41... Na3
{[%clk 0:00:05.2]} 42. h5 {[%clk 0:01:26.6]} 42... Nb5 {[%clk 0:00:05.4]} 43.
Bg3 {[%clk 0:01:23.3]} 43... Na7 {[%clk 0:00:05.7]} 44. g5 {[%clk 0:01:24]}
44... Nc6 {[%clk 0:00:05.8]} 45. Ke4 {[%clk 0:01:24.1]} 45... Ne7 {[%clk
0:00:06.8]} 46. Bd6 {[%clk 0:01:22.3]} 46... Nc8 {[%clk 0:00:05.5]} 47. Bc7
{[%clk 0:01:20.7]} 47... Ne7 {[%clk 0:00:06.5]} 48. Bd6 {[%clk 0:01:15.5]} 48...
Nc8 {[%clk 0:00:07.1]} 49. Bf4 {[%clk 0:01:17.2]} 49... Ne7 {[%clk 0:00:07.9]}
50. Kd3 {[%clk 0:01:16.5]} 50... Kg7 {[%clk 0:00:08.2]} 51. Kc4 {[%clk
0:01:17.8]} 51... Ng8 {[%clk 0:00:08.4]} 52. Bd6 {[%clk 0:01:18.1]} 52... Be3
{[%clk 0:00:07.7]} 53. Be5+ {[%clk 0:01:17.3]} 53... Kf7 {[%clk 0:00:08.1]} 54.
g6+ {[%clk 0:01:17.3]} 54... Kf8 {[%clk 0:00:08.8]} 55. Kd5 {[%clk 0:01:13.9]}
55... Ne7+ {[%clk 0:00:09.4]} 56. Ke6 {[%clk 0:01:14]} 56... Nxg6 {[%clk
0:00:10.7]} 57. hxg6 {[%clk 0:01:15.9]} 57... Kg8 {[%clk 0:00:10.9]} 58. Kf6
{[%clk 0:01:13.5]} 58... c4 {[%clk 0:00:11.4]} 59. Bc3 {[%clk 0:01:09.8]} 59...
Bf2 {[%clk 0:00:10.3]} 60. Ke6 {[%clk 0:01:11.1]} 60... Be3 {[%clk 0:00:10.6]}
61. Kd5 {[%clk 0:01:12.3]} 61... Bh6 {[%clk 0:00:11.1]} 62. Kxc4 {[%clk
0:01:13.2]} 62... Bg7 {[%clk 0:00:12.6]} 63. Bd2 {[%clk 0:01:14.1]} 63... Bf6
{[%clk 0:00:13.4]} 64. Bh6 {[%clk 0:01:15]} 64... Bg7 {[%clk 0:00:14.7]} 65. Bg5
{[%clk 0:01:15.3]} 65... Bf8 {[%clk 0:00:15.5]} 66. Bf6 {[%clk 0:01:12.4]} 66...
Bg7 {[%clk 0:00:16.5]} 67. Bg5 {[%clk 0:01:04.4]} 67... Bf8 {[%clk 0:00:16.9]}
68. Bf6 {[%clk 0:01:02.5]} 68... Bg7 {[%clk 0:00:17.3]} 1/2-1/2

[Event "*** Titled Tuesday 3|2 Blitz"]
[Site "Chess.com"]
[Date "2015.08.04"]
[Round "5"]
[White "alturas_pacificas"]
[Black "tac49"]
[Result "0-1"]
[WhiteElo "2091"]
[BlackElo "2456"]
[TimeControl "180+2"]
[EndTime "12:36:57 PDT"]
[Termination "tac49 won by resignation"]

1. d4 {[%clk 0:03:01.9]} 1... d6 {[%clk 0:03:00.7]} 2. Bf4 {[%clk 0:03:02.7]}
2... Nc6 {[%clk 0:03:01.5]} 3. Nf3 {[%clk 0:03:02.4]} 3... Bg4 {[%clk
0:03:02.2]} 4. e3 {[%clk 0:03:01.5]} 4... e5 {[%clk 0:03:00]} 5. dxe5 {[%clk
0:02:52.8]} 5... dxe5 {[%clk 0:03:00.4]} 6. Qxd8+ {[%clk 0:02:31.7]} 6... Rxd8
{[%clk 0:03:02.3]} 7. Bg3 {[%clk 0:02:27.2]} 7... Nf6 {[%clk 0:02:53.2]} 8. Nc3
{[%clk 0:02:17.3]} 8... Bxf3 {[%clk 0:02:01.7]} 9. gxf3 {[%clk 0:02:17.8]} 9...
Bb4 {[%clk 0:02:03.2]} 10. Bb5 {[%clk 0:02:00.5]} 10... Nd7 {[%clk 0:01:44.6]}
11. O-O-O {[%clk 0:01:50.4]} 11... Bxc3 {[%clk 0:01:44]} 12. bxc3 {[%clk
0:01:49.5]} 12... f6 {[%clk 0:01:40.9]} 13. f4 {[%clk 0:01:41.4]} 13... e4
{[%clk 0:01:35.3]} 14. f5 {[%clk 0:01:34.4]} 14... Nde5 {[%clk 0:01:35.4]} 15.
Bxe5 {[%clk 0:00:55.2]} 15... fxe5 {[%clk 0:01:35.7]} 16. Bxc6+ {[%clk
0:00:41.2]} 16... bxc6 {[%clk 0:01:35.4]} 17. Rxd8+ {[%clk 0:00:42.8]} 17...
Kxd8 {[%clk 0:01:36.4]} 18. Rg1 {[%clk 0:00:44.4]} 18... Rf8 {[%clk 0:01:23.6]}
19. Rxg7 {[%clk 0:00:45]} 19... Rxf5 {[%clk 0:01:24.3]} 20. Rxh7 {[%clk
0:00:44.5]} 20... Rxf2 {[%clk 0:01:24.7]} 21. h4 {[%clk 0:00:41.5]} 21... Re2
{[%clk 0:01:19.6]} 22. Rh5 {[%clk 0:00:38]} 22... Rxe3 {[%clk 0:01:13.4]} 23.
Rxe5 {[%clk 0:00:39.5]} 23... Rxc3 {[%clk 0:01:03.5]} 24. Rxe4 {[%clk
0:00:39.3]} 24... Rh3 {[%clk 0:01:04.4]} 25. Kb2 {[%clk 0:00:38.3]} 25... Kc8
{[%clk 0:01:05.3]} 26. Rg4 {[%clk 0:00:39]} 26... Kb7 {[%clk 0:01:06.6]} 27. Rf4
{[%clk 0:00:38.9]} 27... Kb6 {[%clk 0:01:07.9]} 28. Re4 {[%clk 0:00:39.7]} 28...
a5 {[%clk 0:01:09.2]} 29. a3 {[%clk 0:00:40.4]} 29... Kb5 {[%clk 0:01:10.4]} 30.
Rg4 {[%clk 0:00:40.2]} 30... c5 {[%clk 0:01:11.2]} 31. a4+ {[%clk 0:00:37.8]}
31... Kb6 {[%clk 0:01:10.2]} 32. Rg6+ {[%clk 0:00:38.2]} 32... Kb7 {[%clk
0:01:11]} 33. Rh6 {[%clk 0:00:39.4]} 33... c4 {[%clk 0:01:06.8]} 34. h5 {[%clk
0:00:40]} 34... Ka7 {[%clk 0:01:02]} 35. Rh7 {[%clk 0:00:39.8]} 35... Kb7 {[%clk
0:01:02.8]} 36. h6 {[%clk 0:00:40.9]} 36... Kb6 {[%clk 0:01:01.5]} 37. Rh8
{[%clk 0:00:39.2]} 37... Kb7 {[%clk 0:01:02.3]} 38. h7 {[%clk 0:00:32.2]} 38...
Ka7 {[%clk 0:00:57.9]} 39. Kc1 {[%clk 0:00:31.2]} 39... Kb7 {[%clk 0:00:58.5]}
40. Kd1 {[%clk 0:00:32.3]} 40... Kc6 {[%clk 0:00:59.4]} 41. Ke2 {[%clk
0:00:33.3]} 41... Kc5 {[%clk 0:01:00.4]} 42. Kf2 {[%clk 0:00:32.8]} 42... c3
{[%clk 0:00:55.6]} 43. Kg2 {[%clk 0:00:32.3]} 43... Rh6 {[%clk 0:00:56.1]} 44.
Kg3 {[%clk 0:00:32.2]} 44... Kc4 {[%clk 0:00:55.4]} 45. Kf4 {[%clk 0:00:30.3]}
45... c5 {[%clk 0:00:44.2]} 46. Kg5 {[%clk 0:00:29.4]} 46... Rh2 {[%clk
0:00:44.1]} 47. Kg6 {[%clk 0:00:17.3]} 47... Rg2+ {[%clk 0:00:35.2]} 48. Kf7
{[%clk 0:00:16.7]} 48... Rxc2 {[%clk 0:00:28.8]} 49. Re8 {[%clk 0:00:13.8]}
49... Rh2 {[%clk 0:00:22.9]} 50. h8=Q {[%clk 0:00:13.3]} 50... Rxh8 {[%clk
0:00:24.8]} 51. Rxh8 {[%clk 0:00:15.1]} 51... c2 {[%clk 0:00:24.8]} 52. Rh1
{[%clk 0:00:16.4]} 52... Kb3 {[%clk 0:00:19.5]} 53. Ke6 {[%clk 0:00:17.5]} 53...
Kxa4 {[%clk 0:00:17]} 54. Kd5 {[%clk 0:00:17.1]} 54... Kb3 {[%clk 0:00:18.1]}
55. Kxc5 {[%clk 0:00:13.4]} 55... a4 {[%clk 0:00:18.2]} 56. Kb5 {[%clk
0:00:10.4]} 56... a3 {[%clk 0:00:18.2]} 57. Kc5 {[%clk 0:00:08.2]} 57... a2
{[%clk 0:00:18.9]} 58. Kd4 {[%clk 0:00:09.7]} 58... Kb2 {[%clk 0:00:19.7]} 59.
Kd3 {[%clk 0:00:11]} 59... c1=Q {[%clk 0:00:20.6]} 0-1

[Event "*** Titled Tuesday 3|2 Blitz"]
[Site "Chess.com"]
[Date "2015.08.04"]
[Round "5"]
[White "ChessWarrior7197"]
[Black "arnacman"]
[Result "0-1"]
[WhiteElo "2434"]
[BlackElo "2247"]
[TimeControl "180+2"]
[EndTime "12:37:02 PDT"]
[Termination "arnacman won by resignation"]

1. e4 {[%clk 0:03:01.9]} 1... c5 {[%clk 0:03:00.1]} 2. Nf3 {[%clk 0:03:02.9]}
2... d6 {[%clk 0:03:00.9]} 3. d4 {[%clk 0:03:03.4]} 3... cxd4 {[%clk 0:03:02.8]}
4. Nxd4 {[%clk 0:03:04.3]} 4... Nf6 {[%clk 0:03:04]} 5. Nc3 {[%clk 0:03:05.9]}
5... a6 {[%clk 0:03:04.8]} 6. Be2 {[%clk 0:03:07.5]} 6... e5 {[%clk 0:03:05.2]}
7. Nb3 {[%clk 0:03:08]} 7... Be7 {[%clk 0:03:05.9]} 8. O-O {[%clk 0:03:08.9]}
8... O-O {[%clk 0:03:06.6]} 9. Be3 {[%clk 0:03:09.6]} 9... Be6 {[%clk
0:03:06.6]} 10. a4 {[%clk 0:03:10.3]} 10... Nc6 {[%clk 0:03:04.3]} 11. Qd2
{[%clk 0:02:54.6]} 11... d5 {[%clk 0:02:53.7]} 12. exd5 {[%clk 0:02:53.6]} 12...
Nxd5 {[%clk 0:02:54.2]} 13. Nxd5 {[%clk 0:02:52.2]} 13... Qxd5 {[%clk
0:02:56.1]} 14. Qxd5 {[%clk 0:02:43.2]} 14... Bxd5 {[%clk 0:02:55.6]} 15. Rfd1
{[%clk 0:02:44.2]} 15... Be4 {[%clk 0:02:49.3]} 16. Bd3 {[%clk 0:02:36.7]} 16...
Bxd3 {[%clk 0:02:48.1]} 17. Rxd3 {[%clk 0:02:37.2]} 17... Rfd8 {[%clk
0:02:47.6]} 18. Rc3 {[%clk 0:02:18]} 18... Rac8 {[%clk 0:02:31.9]} 19. Bc5
{[%clk 0:02:13.4]} 19... Bf6 {[%clk 0:02:26.6]} 20. Bb6 {[%clk 0:02:11.8]} 20...
Rd5 {[%clk 0:01:59]} 21. Rc4 {[%clk 0:02:12.2]} 21... Ne7 {[%clk 0:01:50.9]} 22.
Nc5 {[%clk 0:02:01.2]} 22... Rc6 {[%clk 0:01:36]} 23. a5 {[%clk 0:01:45.7]}
23... Nc8 {[%clk 0:01:36.2]} 24. b4 {[%clk 0:01:33.8]} 24... Be7 {[%clk
0:01:26.8]} 25. Kf1 {[%clk 0:01:21.6]} 25... g6 {[%clk 0:01:24.3]} 26. Ke2
{[%clk 0:01:04.8]} 26... Nxb6 {[%clk 0:01:24.6]} 27. axb6 {[%clk 0:01:05.6]}
27... Bxc5 {[%clk 0:01:24.2]} 28. bxc5 {[%clk 0:00:57.1]} 28... Rdxc5 {[%clk
0:01:24.8]} 29. Rxc5 {[%clk 0:00:58.7]} 29... Rxc5 {[%clk 0:01:25.7]} 30. Kd3
{[%clk 0:01:00.4]} 30... Rb5 {[%clk 0:01:23.2]} 31. Re1 {[%clk 0:01:00.1]} 31...
f6 {[%clk 0:01:17.5]} 32. f4 {[%clk 0:01:00.8]} 32... Kf7 {[%clk 0:01:15.8]} 33.
fxe5 {[%clk 0:01:01]} 33... fxe5 {[%clk 0:01:16.3]} 34. c4 {[%clk 0:00:57.1]}
34... Rb3+ {[%clk 0:01:13.7]} 35. Kc2 {[%clk 0:00:56.9]} 35... Rxb6 {[%clk
0:01:13.8]} 36. Rxe5 {[%clk 0:00:58.2]} 36... Re6 {[%clk 0:01:13.3]} 37. Rd5
{[%clk 0:00:56.2]} 37... Re2+ {[%clk 0:01:11.3]} 38. Kd3 {[%clk 0:00:57]} 38...
Rxg2 {[%clk 0:01:11.7]} 39. Rd7+ {[%clk 0:00:58.2]} 39... Kf6 {[%clk 0:01:08.4]}
40. Rxh7 {[%clk 0:00:57.2]} 40... b5 {[%clk 0:01:04.2]} 41. c5 {[%clk
0:00:56.3]} 41... Rg4 {[%clk 0:00:49.5]} 42. Ra7 {[%clk 0:00:56]} 42... Ra4
{[%clk 0:00:47.4]} 43. c6 {[%clk 0:00:52.8]} 43... Kg5 {[%clk 0:00:37.8]} 44.
Ke3 {[%clk 0:00:49]} 44... Kf5 {[%clk 0:00:31.3]} 45. Kd3 {[%clk 0:00:42.3]}
45... g5 {[%clk 0:00:30.6]} 46. Ke3 {[%clk 0:00:42.2]} 46... Kg4 {[%clk
0:00:31]} 47. Rd7 {[%clk 0:00:38.4]} 47... Ra1 {[%clk 0:00:19.2]} 48. Rd4+
{[%clk 0:00:34.7]} 48... Kh5 {[%clk 0:00:19.6]} 49. Ke4 {[%clk 0:00:23.8]} 49...
Rc1 {[%clk 0:00:19.7]} 50. Kd5 {[%clk 0:00:25]} 50... a5 {[%clk 0:00:17.9]} 51.
Kd6 {[%clk 0:00:25.6]} 51... a4 {[%clk 0:00:17.8]} 52. c7 {[%clk 0:00:24.4]}
52... a3 {[%clk 0:00:18.1]} 53. Rd5 {[%clk 0:00:20.7]} 53... a2 {[%clk
0:00:17.2]} 54. Rc5 {[%clk 0:00:09.3]} 54... Rxc5 {[%clk 0:00:17.4]} 55. Kxc5
{[%clk 0:00:10.1]} 55... a1=Q {[%clk 0:00:18.6]} 56. c8=Q {[%clk 0:00:10.7]}
56... Qc1+ {[%clk 0:00:18.9]} 0-1